[Event "*** Titled Tuesday Blitz"]
[Site "Chess.com"]
[Date "2018.09.04"]
[Round "7"]
[White "Nakachuk"]
[Black "chesstatour"]
[Result "1-0"]
[WhiteElo "2676"]
[BlackElo "2000"]
[TimeControl "180+2"]
[EndTime "15:06:34 PDT"]
[Termination "Nakachuk won on time"]

1. d4 {[%clk 0:03:01.5]} 1... d6 {[%clk 0:02:54.9]} 2. Bf4 {[%clk 0:03:02.7]}
2... g6 {[%clk 0:02:55.3]} 3. e3 {[%clk 0:03:03.6]} 3... Bg7 {[%clk 0:02:56.5]}
4. Nf3 {[%clk 0:03:05.2]} 4... c6 {[%clk 0:02:54.8]} 5. Be2 {[%clk 0:03:05.8]}
5... f5 {[%clk 0:02:56.1]} 6. O-O {[%clk 0:03:05.7]} 6... Nf6 {[%clk 0:02:57.6]}
7. h3 {[%clk 0:03:07.1]} 7... O-O {[%clk 0:02:58.7]} 8. c4 {[%clk 0:03:07.6]}
8... Bd7 {[%clk 0:02:59.4]} 9. Nc3 {[%clk 0:03:08.8]} 9... Na6 {[%clk
0:03:00.7]} 10. Re1 {[%clk 0:03:08.3]} 10... Nc7 {[%clk 0:02:18.3]} 11. Bh2
{[%clk 0:03:08.9]} 11... h6 {[%clk 0:02:13.5]} 12. Qc2 {[%clk 0:03:06.4]} 12...
Kh7 {[%clk 0:02:10.2]} 13. Rad1 {[%clk 0:03:07.4]} 13... Qe8 {[%clk 0:02:10.3]}
14. e4 {[%clk 0:03:03.9]} 14... Nxe4 {[%clk 0:02:03]} 15. Nxe4 {[%clk
0:03:05.8]} 15... fxe4 {[%clk 0:02:03.4]} 16. Qxe4 {[%clk 0:03:07.7]} 16... Qf7
{[%clk 0:01:40.7]} 17. Bd3 {[%clk 0:03:01]} 17... Rae8 {[%clk 0:01:35.5]} 18.
Qe3 {[%clk 0:02:47.8]} 18... Bf5 {[%clk 0:01:23.6]} 19. b3 {[%clk 0:02:48.5]}
19... Bxd3 {[%clk 0:01:13]} 20. Rxd3 {[%clk 0:02:50.2]} 20... e5 {[%clk
0:00:56.2]} 21. dxe5 {[%clk 0:02:49.6]} 21... dxe5 {[%clk 0:00:57.2]} 22. Qd2
{[%clk 0:02:39]} 22... e4 {[%clk 0:00:34.1]} 23. Rd7 {[%clk 0:02:39]} 23... Re7
{[%clk 0:00:34.4]} 24. Rxe7 {[%clk 0:02:39.1]} 24... Qxe7 {[%clk 0:00:32.9]} 25.
Bd6 {[%clk 0:02:40.6]} 25... Qf7 {[%clk 0:00:10.4]} 26. Bxf8 {[%clk 0:02:42]}
26... Qxf8 {[%clk 0:00:08.1]} 27. Rxe4 {[%clk 0:02:43.4]} 27... Qf7 {[%clk
0:00:06]} 28. Qe3 {[%clk 0:02:44]} 28... Bf6 {[%clk 0:00:05.1]} 29. Rf4 {[%clk
0:02:44.8]} 29... Kg7 {[%clk 0:00:04.9]} 30. h4 {[%clk 0:02:46.3]} 30... Ne6
{[%clk 0:00:05.4]} 31. Re4 {[%clk 0:02:46.9]} 31... Nd8 {[%clk 0:00:02.3]} 32.
h5 {[%clk 0:02:48.3]} 32... g5 {[%clk 0:00:02.3]} 33. Nd4 {[%clk 0:02:49.9]} 1-0

[Event "*** Titled Tuesday Blitz"]
[Site "Chess.com"]
[Date "2018.09.04"]
[Round "7"]
[White "OglazaOskar2005"]
[Black "ramses135"]
[Result "0-1"]
[WhiteElo "2303"]
[BlackElo "2533"]
[TimeControl "180+2"]
[EndTime "15:06:52 PDT"]
[Termination "ramses135 won by resignation"]

1. e4 {[%clk 0:03:00.9]} 1... c5 {[%clk 0:02:33.4]} 2. Ne2 {[%clk 0:03:00.8]}
2... Nc6 {[%clk 0:02:32.7]} 3. d4 {[%clk 0:03:01.4]} 3... cxd4 {[%clk
0:02:34.6]} 4. Nxd4 {[%clk 0:03:02.4]} 4... e5 {[%clk 0:02:35.4]} 5. Nb5 {[%clk
0:03:00.7]} 5... d6 {[%clk 0:02:35.6]} 6. N1c3 {[%clk 0:03:01.1]} 6... a6 {[%clk
0:02:35.8]} 7. Na3 {[%clk 0:03:02.5]} 7... b5 {[%clk 0:02:37.3]} 8. Nd5 {[%clk
0:03:03.9]} 8... Nge7 {[%clk 0:02:38.9]} 9. Be3 {[%clk 0:02:42.6]} 9... Nxd5
{[%clk 0:02:37.8]} 10. exd5 {[%clk 0:02:42.8]} 10... Ne7 {[%clk 0:02:38.8]} 11.
c4 {[%clk 0:02:39.5]} 11... g6 {[%clk 0:02:37.1]} 12. Nxb5 {[%clk 0:02:37.2]}
12... axb5 {[%clk 0:02:35.7]} 13. cxb5 {[%clk 0:02:34.1]} 13... Bg7 {[%clk
0:02:30.7]} 14. b6 {[%clk 0:02:23.9]} 14... O-O {[%clk 0:02:28.1]} 15. a4 {[%clk
0:02:23]} 15... Nf5 {[%clk 0:02:15.5]} 16. a5 {[%clk 0:02:08.5]} 16... Nxe3
{[%clk 0:02:11.6]} 17. fxe3 {[%clk 0:01:51.2]} 17... Qh4+ {[%clk 0:02:10.5]} 18.
g3 {[%clk 0:01:47.4]} 18... Qe4 {[%clk 0:02:10.3]} 19. Kf2 {[%clk 0:01:39.2]}
19... Qxh1 {[%clk 0:02:04.6]} 20. Qb3 {[%clk 0:01:26.6]} 20... Qxh2+ {[%clk
0:01:53.9]} 21. Ke1 {[%clk 0:01:25.9]} 21... Qxg3+ {[%clk 0:01:44.9]} 22. Kd2
{[%clk 0:01:26.7]} 22... Qf2+ {[%clk 0:01:41.3]} 23. Be2 {[%clk 0:01:14.1]}
23... Bg4 {[%clk 0:01:41.8]} 24. Re1 {[%clk 0:01:15]} 24... Rxa5 {[%clk
0:01:41.8]} 25. b7 {[%clk 0:01:15]} 25... Rb8 {[%clk 0:01:37.1]} 26. Qc4 {[%clk
0:01:13.9]} 26... Rc5 {[%clk 0:01:35.1]} 27. Qa6 {[%clk 0:01:11]} 27... Bh6
{[%clk 0:01:23.3]} 0-1

[Event "*** Titled Tuesday Blitz"]
[Site "Chess.com"]
[Date "2018.09.04"]
[Round "7"]
[White "Polish_fighter3000"]
[Black "FMJoseHerrera"]
[Result "1-0"]
[WhiteElo "2903"]
[BlackElo "2408"]
[TimeControl "180+2"]
[EndTime "15:07:00 PDT"]
[Termination "Polish_fighter3000 won by resignation"]

1. Nf3 {[%clk 0:03:01.9]} 1... c5 {[%clk 0:02:59.7]} 2. c3 {[%clk 0:02:57.3]}
2... b6 {[%clk 0:03:00.2]} 3. d4 {[%clk 0:02:57.8]} 3... e6 {[%clk 0:03:01.6]}
4. e4 {[%clk 0:02:57.8]} 4... Nf6 {[%clk 0:03:01.3]} 5. Bd3 {[%clk 0:02:57.4]}
5... d6 {[%clk 0:03:01.4]} 6. O-O {[%clk 0:02:58.1]} 6... Bb7 {[%clk 0:03:02.6]}
7. Re1 {[%clk 0:02:59.5]} 7... Qc7 {[%clk 0:03:04]} 8. Bg5 {[%clk 0:02:59]} 8...
Nbd7 {[%clk 0:03:04.5]} 9. d5 {[%clk 0:02:55.6]} 9... e5 {[%clk 0:03:03.5]} 10.
a4 {[%clk 0:02:47.7]} 10... a6 {[%clk 0:03:03.8]} 11. Na3 {[%clk 0:02:48.5]}
11... Be7 {[%clk 0:03:04.2]} 12. b4 {[%clk 0:02:47.3]} 12... O-O {[%clk
0:03:00.8]} 13. Qe2 {[%clk 0:02:47.7]} 13... Rfc8 {[%clk 0:03:00.1]} 14. h3
{[%clk 0:02:46.4]} 14... Nf8 {[%clk 0:03:01]} 15. Nc4 {[%clk 0:02:39.5]} 15...
Ng6 {[%clk 0:03:01.3]} 16. a5 {[%clk 0:02:40.2]} 16... bxa5 {[%clk 0:02:34]} 17.
Nxa5 {[%clk 0:02:42.1]} 17... h6 {[%clk 0:02:23.4]} 18. Bd2 {[%clk 0:02:31.2]}
18... Nh5 {[%clk 0:02:14]} 19. g3 {[%clk 0:02:31.6]} 19... Qd7 {[%clk
0:02:08.8]} 20. Nxb7 {[%clk 0:02:29.6]} 20... Qxb7 {[%clk 0:02:08.7]} 21. Bxa6
{[%clk 0:02:30]} 21... Qd7 {[%clk 0:02:04.7]} 22. Bxc8 {[%clk 0:02:28.6]} 22...
Rxc8 {[%clk 0:02:06.6]} 23. Kh2 {[%clk 0:02:28.2]} 23... cxb4 {[%clk 0:02:03.4]}
24. cxb4 {[%clk 0:02:30.1]} 24... Rc2 {[%clk 0:02:04.3]} 25. Rec1 {[%clk
0:02:23.4]} 25... Nhf4 {[%clk 0:01:59.1]} 26. gxf4 {[%clk 0:02:25.3]} 26... Nxf4
{[%clk 0:02:01]} 27. Qf1 {[%clk 0:02:25.8]} 27... Rxd2 {[%clk 0:01:48.6]} 28.
Nxd2 {[%clk 0:02:25.9]} 28... Bg5 {[%clk 0:01:36.7]} 29. Rc3 {[%clk 0:02:26]}
29... Ng6 {[%clk 0:01:28.8]} 30. Nf3 {[%clk 0:02:23.3]} 30... Bf4+ {[%clk
0:01:29.7]} 31. Kh1 {[%clk 0:02:24.8]} 31... Qe7 {[%clk 0:01:26.9]} 32. b5
{[%clk 0:02:24.9]} 32... Qb7 {[%clk 0:01:10.7]} 33. Rc6 {[%clk 0:02:24.3]} 33...
Ne7 {[%clk 0:01:04.9]} 34. Qc4 {[%clk 0:02:20.1]} 34... Qd7 {[%clk 0:01:03.7]}
35. Kg2 {[%clk 0:02:20.3]} 35... Ng6 {[%clk 0:01:02]} 36. Ra8+ {[%clk
0:02:19.6]} 36... Kh7 {[%clk 0:01:02.9]} 37. Rc7 {[%clk 0:02:21]} 1-0

[Event "*** Titled Tuesday Blitz"]
[Site "Chess.com"]
[Date "2018.09.04"]
[Round "7"]
[White "Faqade"]
[Black "rasmussvane"]
[Result "1-0"]
[WhiteElo "2490"]
[BlackElo "2653"]
[TimeControl "180+2"]
[EndTime "15:07:08 PDT"]
[Termination "Faqade won by resignation"]

1. e4 {[%clk 0:03:01.9]} 1... c6 {[%clk 0:03:01.3]} 2. Nf3 {[%clk 0:02:58.5]}
2... d5 {[%clk 0:03:02.9]} 3. d3 {[%clk 0:03:00.4]} 3... dxe4 {[%clk 0:03:03.5]}
4. dxe4 {[%clk 0:03:01.8]} 4... Qxd1+ {[%clk 0:03:05.1]} 5. Kxd1 {[%clk
0:03:03.4]} 5... f6 {[%clk 0:02:54.6]} 6. Nfd2 {[%clk 0:03:04.5]} 6... e5 {[%clk
0:02:55.1]} 7. Nc4 {[%clk 0:03:05.2]} 7... Be6 {[%clk 0:02:55.7]} 8. Be3 {[%clk
0:03:05]} 8... Na6 {[%clk 0:02:55]} 9. Nbd2 {[%clk 0:03:06]} 9... O-O-O {[%clk
0:02:56]} 10. c3 {[%clk 0:03:06.4]} 10... h5 {[%clk 0:02:54.8]} 11. Kc2 {[%clk
0:02:59.2]} 11... Nh6 {[%clk 0:02:54.8]} 12. f3 {[%clk 0:02:59.9]} 12... Nf7
{[%clk 0:02:56]} 13. Bxa7 {[%clk 0:03:00.1]} 13... b5 {[%clk 0:02:54.6]} 14. Na5
{[%clk 0:02:58.9]} 14... Kc7 {[%clk 0:02:54.4]} 15. a4 {[%clk 0:02:58.4]} 15...
Nd6 {[%clk 0:02:37.3]} 16. Nxc6 {[%clk 0:02:52.8]} 16... Kxc6 {[%clk 0:01:32.1]}
17. axb5+ {[%clk 0:02:51.7]} 17... Kb7 {[%clk 0:01:34]} 18. Rxa6 {[%clk
0:02:53]} 18... g6 {[%clk 0:01:28.8]} 19. Bb6 {[%clk 0:02:45.7]} 19... Rd7
{[%clk 0:01:28.1]} 20. Bc5 {[%clk 0:02:41.8]} 20... Nc4 {[%clk 0:01:22.9]} 21.
Nxc4 {[%clk 0:02:01.8]} 21... Bxc4 {[%clk 0:01:22.1]} 22. Ra7+ {[%clk
0:01:58.2]} 22... Kc8 {[%clk 0:01:23.3]} 23. Ra8+ {[%clk 0:01:53.3]} 23... Kb7
{[%clk 0:01:24.1]} 24. Ra7+ {[%clk 0:01:52.4]} 24... Kc8 {[%clk 0:01:24.8]} 25.
Ra8+ {[%clk 0:01:51.4]} 25... Kb7 {[%clk 0:01:25.8]} 26. Rxf8 {[%clk 0:01:53]}
26... Bxf1 {[%clk 0:01:22.3]} 27. Rxf1 {[%clk 0:01:45.6]} 27... Rxf8 {[%clk
0:01:14.6]} 28. Bxf8 {[%clk 0:01:45.5]} 28... Kb6 {[%clk 0:01:16.5]} 29. c4
{[%clk 0:01:43.7]} 29... Rd4 {[%clk 0:01:16.1]} 30. Kc3 {[%clk 0:01:43.9]} 30...
f5 {[%clk 0:01:17.6]} 31. Re1 {[%clk 0:01:37.9]} 31... f4 {[%clk 0:01:18]} 32.
Bg7 {[%clk 0:01:38.3]} 32... Kc5 {[%clk 0:01:17.6]} 33. Bf8+ {[%clk 0:01:39]}
33... Kb6 {[%clk 0:01:18.7]} 34. Bg7 {[%clk 0:01:40.3]} 34... Kc5 {[%clk
0:01:20]} 35. b4+ {[%clk 0:01:41.2]} 35... Kd6 {[%clk 0:01:20.9]} 36. Re2 {[%clk
0:01:39]} 36... Ke6 {[%clk 0:01:21.4]} 37. Rd2 {[%clk 0:01:39.7]} 37... Rxd2
{[%clk 0:01:14.4]} 38. Kxd2 {[%clk 0:01:41.6]} 38... g5 {[%clk 0:01:15.8]} 39.
b6 {[%clk 0:01:42.1]} 39... g4 {[%clk 0:01:17.6]} 40. c5 {[%clk 0:01:41.1]}
40... Kf7 {[%clk 0:01:19.5]} 41. Bxe5 {[%clk 0:01:41.3]} 41... g3 {[%clk
0:01:20.1]} 42. hxg3 {[%clk 0:01:42.2]} 42... fxg3 {[%clk 0:01:20.6]} 43. Bxg3
{[%clk 0:01:44.1]} 1-0

[Event "*** Titled Tuesday Blitz"]
[Site "Chess.com"]
[Date "2018.09.04"]
[Round "7"]
[White "platy3"]
[Black "Eagle_pada"]
[Result "0-1"]
[WhiteElo "2748"]
[BlackElo "2696"]
[TimeControl "180+2"]
[EndTime "15:07:32 PDT"]
[Termination "Eagle_pada won by resignation"]

1. e4 {[%clk 0:02:57.4]} 1... e5 {[%clk 0:03:00.2]} 2. Nf3 {[%clk 0:02:55.8]}
2... Nf6 {[%clk 0:03:02.1]} 3. Nxe5 {[%clk 0:02:53.3]} 3... d6 {[%clk
0:03:01.6]} 4. Nc4 {[%clk 0:02:54.3]} 4... Nxe4 {[%clk 0:03:00.4]} 5. Qe2 {[%clk
0:02:55.6]} 5... Qe7 {[%clk 0:02:59.6]} 6. Ne3 {[%clk 0:02:56.9]} 6... Be6
{[%clk 0:02:57.4]} 7. Nc3 {[%clk 0:02:50.2]} 7... Nxc3 {[%clk 0:02:56.2]} 8.
bxc3 {[%clk 0:02:50.3]} 8... g6 {[%clk 0:02:55.3]} 9. g3 {[%clk 0:02:48.3]} 9...
c6 {[%clk 0:02:54.9]} 10. Bg2 {[%clk 0:02:49]} 10... Bg7 {[%clk 0:02:53.5]} 11.
O-O {[%clk 0:02:50]} 11... Nd7 {[%clk 0:02:51.5]} 12. Rb1 {[%clk 0:02:48.9]}
12... Nb6 {[%clk 0:02:49.9]} 13. c4 {[%clk 0:02:25]} 13... Bxc4 {[%clk
0:02:46.3]} 14. d3 {[%clk 0:02:10.9]} 14... Bxa2 {[%clk 0:02:47.6]} 15. Bb2
{[%clk 0:02:09.7]} 15... Bxb2 {[%clk 0:02:48.5]} 16. Rxb2 {[%clk 0:02:10.7]}
16... Be6 {[%clk 0:02:50.4]} 17. f4 {[%clk 0:02:01.3]} 17... O-O {[%clk
0:02:47.2]} 18. Qd2 {[%clk 0:01:53.3]} 18... Rfe8 {[%clk 0:02:29]} 19. f5 {[%clk
0:01:45.4]} 19... Bd7 {[%clk 0:02:30.1]} 20. Ng4 {[%clk 0:01:44.6]} 20... gxf5
{[%clk 0:02:19.1]} 21. Nh6+ {[%clk 0:01:44.7]} 21... Kg7 {[%clk 0:02:20.1]} 22.
Nxf5+ {[%clk 0:01:19.8]} 22... Bxf5 {[%clk 0:02:20.6]} 23. Rxf5 {[%clk
0:01:21.7]} 23... Qe1+ {[%clk 0:02:20.6]} 24. Qxe1 {[%clk 0:01:21.6]} 24...
Rxe1+ {[%clk 0:02:22.5]} 25. Kf2 {[%clk 0:01:23.1]} 25... Re5 {[%clk 0:02:18]}
26. Rf4 {[%clk 0:01:14.3]} 26... Rae8 {[%clk 0:02:18.8]} 27. Bf3 {[%clk
0:01:14.5]} 27... Ra5 {[%clk 0:02:15.2]} 28. Rg4+ {[%clk 0:01:12.3]} 28... Kh8
{[%clk 0:02:16.6]} 29. Rd4 {[%clk 0:01:13.2]} 29... d5 {[%clk 0:02:12.7]} 30.
Rf4 {[%clk 0:01:13.7]} 30... Kg7 {[%clk 0:02:12.4]} 31. Rg4+ {[%clk 0:01:13.8]}
31... Kh8 {[%clk 0:02:11.4]} 32. Rf4 {[%clk 0:01:15.1]} 32... Re7 {[%clk
0:02:10.4]} 33. g4 {[%clk 0:01:12.4]} 33... Ra1 {[%clk 0:02:08.9]} 34. h4 {[%clk
0:01:11.7]} 34... Na4 {[%clk 0:02:07.6]} 35. Rb3 {[%clk 0:01:07]} 35... Ra2
{[%clk 0:02:08.5]} 36. Kg3 {[%clk 0:01:06.5]} 36... Nc5 {[%clk 0:02:06]} 37. Rc3
{[%clk 0:01:06.5]} 37... Ne6 {[%clk 0:02:04.3]} 38. Rb4 {[%clk 0:01:04.4]} 38...
a5 {[%clk 0:02:02.2]} 39. Rb1 {[%clk 0:01:03.1]} 39... Nd4 {[%clk 0:02:00.2]}
40. Bd1 {[%clk 0:01:04.2]} 40... Kg7 {[%clk 0:01:59.6]} 41. Kf2 {[%clk
0:01:04.6]} 41... b5 {[%clk 0:01:57]} 42. Rc5 {[%clk 0:01:02.3]} 42... b4 {[%clk
0:01:56.2]} 43. Kg3 {[%clk 0:00:57.9]} 43... Rc7 {[%clk 0:01:55.3]} 0-1

[Event "*** Titled Tuesday Blitz"]
[Site "Chess.com"]
[Date "2018.09.04"]
[Round "7"]
[White "inegrepus"]
[Black "b_6"]
[Result "0-1"]
[WhiteElo "2199"]
[BlackElo "2390"]
[TimeControl "180+2"]
[EndTime "15:07:32 PDT"]
[Termination "b_6 won by resignation"]

1. d4 {[%clk 0:03:01.7]} 1... d5 {[%clk 0:03:00.5]} 2. c4 {[%clk 0:03:02.3]}
2... c6 {[%clk 0:02:56.8]} 3. cxd5 {[%clk 0:03:03.3]} 3... cxd5 {[%clk
0:02:57.2]} 4. Nc3 {[%clk 0:03:04.9]} 4... Nc6 {[%clk 0:02:58.3]} 5. e4 {[%clk
0:03:06.3]} 5... dxe4 {[%clk 0:02:23.1]} 6. d5 {[%clk 0:03:08.2]} 6... Ne5
{[%clk 0:02:24.2]} 7. Qa4+ {[%clk 0:03:09]} 7... Bd7 {[%clk 0:02:23.6]} 8. Qxe4
{[%clk 0:03:09.5]} 8... Ng6 {[%clk 0:02:22.4]} 9. Nf3 {[%clk 0:03:09.5]} 9...
Nf6 {[%clk 0:02:22.7]} 10. Qd4 {[%clk 0:03:11.1]} 10... e6 {[%clk 0:02:18.4]}
11. Bg5 {[%clk 0:03:09.4]} 11... Be7 {[%clk 0:02:18.6]} 12. d6 {[%clk
0:03:09.6]} 12... Bf8 {[%clk 0:02:16.1]} 13. Be2 {[%clk 0:03:07.6]} 13... h6
{[%clk 0:02:12.8]} 14. Bxf6 {[%clk 0:03:08.5]} 14... gxf6 {[%clk 0:02:13.8]} 15.
O-O {[%clk 0:03:07.3]} 15... Bg7 {[%clk 0:02:14.9]} 16. Nb5 {[%clk 0:03:02.4]}
16... O-O {[%clk 0:02:11.8]} 17. Nc7 {[%clk 0:03:03.1]} 17... Rc8 {[%clk
0:02:09.4]} 18. Rfd1 {[%clk 0:03:03.6]} 18... a6 {[%clk 0:02:06]} 19. Qb6 {[%clk
0:03:03.6]} 19... Nf4 {[%clk 0:01:45.2]} 20. Bf1 {[%clk 0:03:03.1]} 20... Bc6
{[%clk 0:01:42.6]} 21. Nd4 {[%clk 0:02:41.1]} 21... Qxd6 {[%clk 0:01:35.7]} 22.
Nxc6 {[%clk 0:02:42.1]} 22... Qxc7 {[%clk 0:01:23.3]} 23. Qxc7 {[%clk 0:02:19]}
23... Rxc7 {[%clk 0:01:24]} 24. Nb4 {[%clk 0:02:19.4]} 24... f5 {[%clk
0:01:20.9]} 25. g3 {[%clk 0:02:20.5]} 25... Ng6 {[%clk 0:01:17.5]} 26. Rac1
{[%clk 0:02:21.3]} 26... Rfc8 {[%clk 0:01:11.3]} 27. Rxc7 {[%clk 0:02:22]} 27...
Rxc7 {[%clk 0:01:12.6]} 28. b3 {[%clk 0:02:22.8]} 28... Bc3 {[%clk 0:01:08.5]}
29. Rd8+ {[%clk 0:02:22.8]} 29... Kg7 {[%clk 0:01:08.5]} 30. Nd3 {[%clk
0:02:20.9]} 30... Kf6 {[%clk 0:01:03.5]} 31. h4 {[%clk 0:02:20.2]} 31... Ke7
{[%clk 0:01:02.5]} 32. Rb8 {[%clk 0:02:18.6]} 32... Kd6 {[%clk 0:00:54.1]} 33.
h5 {[%clk 0:02:14]} 33... Ne7 {[%clk 0:00:51.4]} 34. Nf4 {[%clk 0:02:14.3]}
34... e5 {[%clk 0:00:44.6]} 35. Nd3 {[%clk 0:02:05.6]} 35... Nd5 {[%clk
0:00:42.7]} 36. Bg2 {[%clk 0:02:04.6]} 36... e4 {[%clk 0:00:43.5]} 37. Nf4
{[%clk 0:01:58]} 37... Nxf4 {[%clk 0:00:42]} 38. gxf4 {[%clk 0:01:59.9]} 38...
Bd4 {[%clk 0:00:42.9]} 39. Rd8+ {[%clk 0:01:57.1]} 39... Kc5 {[%clk 0:00:43.9]}
40. Rh8 {[%clk 0:01:50]} 40... Bxh8 {[%clk 0:00:44.2]} 0-1

[Event "*** Titled Tuesday Blitz"]
[Site "Chess.com"]
[Date "2018.09.04"]
[Round "7"]
[White "champ2005"]
[Black "Blagorod"]
[Result "1-0"]
[WhiteElo "2731"]
[BlackElo "2013"]
[TimeControl "180+2"]
[EndTime "15:07:43 PDT"]
[Termination "champ2005 won on time"]

1. Nf3 {[%clk 0:03:01.4]} 1... Nc6 {[%clk 0:02:59.6]} 2. d4 {[%clk 0:03:01.1]}
2... d5 {[%clk 0:03:00.3]} 3. g3 {[%clk 0:03:01.8]} 3... Nf6 {[%clk 0:02:56.6]}
4. Bg2 {[%clk 0:03:02.8]} 4... Bf5 {[%clk 0:02:49.7]} 5. O-O {[%clk 0:03:03.7]}
5... Qd7 {[%clk 0:02:44.7]} 6. c4 {[%clk 0:03:03.8]} 6... dxc4 {[%clk
0:02:34.5]} 7. Na3 {[%clk 0:03:04.4]} 7... O-O-O {[%clk 0:02:30.3]} 8. Nxc4
{[%clk 0:02:56]} 8... Nxd4 {[%clk 0:02:18.1]} 9. Nxd4 {[%clk 0:02:45.8]} 9...
Qxd4 {[%clk 0:02:16.8]} 10. Be3 {[%clk 0:02:46.5]} 10... Qxd1 {[%clk 0:02:16.2]}
11. Rfxd1 {[%clk 0:02:46.8]} 11... Rxd1+ {[%clk 0:01:58.3]} 12. Rxd1 {[%clk
0:02:46.8]} 12... e6 {[%clk 0:01:49]} 13. Na5 {[%clk 0:02:40.5]} 13... Bb4
{[%clk 0:01:03.3]} 14. Bxb7+ {[%clk 0:02:37.9]} 14... Kb8 {[%clk 0:01:03]} 15.
Nc6+ {[%clk 0:02:39]} 15... Kxb7 {[%clk 0:01:03.1]} 16. Nxb4 {[%clk 0:02:40.9]}
16... a5 {[%clk 0:00:28.3]} 17. Nd3 {[%clk 0:02:41.3]} 17... Nd5 {[%clk
0:00:27.4]} 18. Bd4 {[%clk 0:02:38.4]} 18... Bxd3 {[%clk 0:00:23.9]} 19. Rxd3
{[%clk 0:02:38.7]} 19... f6 {[%clk 0:00:25.2]} 20. a3 {[%clk 0:02:32.3]} 20...
Rb8 {[%clk 0:00:22.7]} 21. e4 {[%clk 0:02:32.4]} 21... Ne7 {[%clk 0:00:21.2]}
22. Bc5 {[%clk 0:02:33.2]} 22... Nc6 {[%clk 0:00:20]} 23. Rd7 {[%clk 0:02:33.5]}
23... Rd8 {[%clk 0:00:19.6]} 24. Rxg7 {[%clk 0:02:33.9]} 24... Rd2 {[%clk
0:00:18.2]} 25. Rxh7 {[%clk 0:02:34.4]} 25... Rxb2 {[%clk 0:00:18.9]} 26. Bd6
{[%clk 0:02:34.8]} 26... Rb1+ {[%clk 0:00:17]} 27. Kg2 {[%clk 0:02:35.4]} 27...
Rd1 {[%clk 0:00:11.7]} 28. Bxc7 {[%clk 0:02:34.9]} 28... Ka6 {[%clk 0:00:13]}
29. Bf4 {[%clk 0:02:34.2]} 29... e5 {[%clk 0:00:13.2]} 30. Be3 {[%clk
0:02:34.9]} 30... Rd3 {[%clk 0:00:13.2]} 31. Rf7 {[%clk 0:02:34.9]} 31... Rxa3
{[%clk 0:00:11.8]} 32. Rxf6 {[%clk 0:02:35.9]} 32... Kb5 {[%clk 0:00:13.5]} 33.
h4 {[%clk 0:02:36]} 33... Ra1 {[%clk 0:00:13.1]} 34. h5 {[%clk 0:02:37.1]} 34...
a4 {[%clk 0:00:14.2]} 35. h6 {[%clk 0:02:38.3]} 35... a3 {[%clk 0:00:11]} 36. h7
{[%clk 0:02:39.5]} 36... a2 {[%clk 0:00:12.1]} 37. h8=Q {[%clk 0:02:40.4]} 37...
Rg1+ {[%clk 0:00:12.1]} 38. Kxg1 {[%clk 0:02:40.9]} 38... a1=Q+ {[%clk
0:00:12.5]} 39. Kg2 {[%clk 0:02:42.4]} 39... Qb1 {[%clk 0:00:10]} 40. Qh7 {[%clk
0:02:37.6]} 40... Qd3 {[%clk 0:00:04.3]} 41. Qb7+ {[%clk 0:02:37.8]} 41... Ka5
{[%clk 0:00:03.2]} 42. Qb6+ {[%clk 0:02:37]} 42... Ka4 {[%clk 0:00:03.6]} 43.
Qxc6+ {[%clk 0:02:38.2]} 43... Ka5 {[%clk 0:00:02.5]} 44. Qb7 {[%clk 0:02:35.2]}
1-0

[Event "*** Titled Tuesday Blitz"]
[Site "Chess.com"]
[Date "2018.09.04"]
[Round "7"]
[White "julinha97"]
[Black "Saitama_Hero"]
[Result "0-1"]
[WhiteElo "2149"]
[BlackElo "2192"]
[TimeControl "180+2"]
[EndTime "15:07:57 PDT"]
[Termination "Saitama_Hero won on time"]

1. e4 {[%clk 0:03:01.9]} 1... c5 {[%clk 0:02:51.2]} 2. Nf3 {[%clk 0:03:02.3]}
2... e6 {[%clk 0:02:39.7]} 3. d4 {[%clk 0:03:02.6]} 3... cxd4 {[%clk 0:02:41.6]}
4. Nxd4 {[%clk 0:03:04.5]} 4... Nf6 {[%clk 0:02:39.2]} 5. Nc3 {[%clk 0:03:05]}
5... d6 {[%clk 0:02:32.9]} 6. g4 {[%clk 0:03:04.5]} 6... h6 {[%clk 0:02:32.2]}
7. h4 {[%clk 0:02:53.2]} 7... Nc6 {[%clk 0:02:30.2]} 8. Rg1 {[%clk 0:02:46.4]}
8... d5 {[%clk 0:02:28]} 9. g5 {[%clk 0:02:17.5]} 9... hxg5 {[%clk 0:02:25.4]}
10. Bxg5 {[%clk 0:02:17.1]} 10... Qb6 {[%clk 0:02:23.9]} 11. Bxf6 {[%clk
0:02:03.5]} 11... gxf6 {[%clk 0:02:23.4]} 12. Nb3 {[%clk 0:01:48]} 12... d4
{[%clk 0:02:18.9]} 13. Nb5 {[%clk 0:01:43.8]} 13... Rxh4 {[%clk 0:02:08.3]} 14.
Bg2 {[%clk 0:01:35.9]} 14... e5 {[%clk 0:01:59.3]} 15. a4 {[%clk 0:01:28.4]}
15... a6 {[%clk 0:01:59.2]} 16. Na3 {[%clk 0:01:25.8]} 16... Be6 {[%clk
0:01:54.3]} 17. Qf3 {[%clk 0:01:20.4]} 17... Bb4+ {[%clk 0:01:45.2]} 18. Kf1
{[%clk 0:01:07.5]} 18... Rf4 {[%clk 0:01:45.3]} 19. Qd3 {[%clk 0:01:03.7]} 19...
Rc8 {[%clk 0:01:41.2]} 20. Nc1 {[%clk 0:00:58.2]} 20... Bxa3 {[%clk 0:01:20.7]}
21. bxa3 {[%clk 0:00:37.4]} 21... Nb4 {[%clk 0:01:19.3]} 22. axb4 {[%clk
0:00:32]} 22... Bc4 {[%clk 0:01:19.2]} 23. Bh3 {[%clk 0:00:30.4]} 23... Bxd3+
{[%clk 0:01:17.6]} 24. Nxd3 {[%clk 0:00:32.3]} 24... Rxc2 {[%clk 0:01:14.5]} 25.
Nxf4 {[%clk 0:00:32.9]} 25... exf4 {[%clk 0:01:13.8]} 26. Rg8+ {[%clk
0:00:34.1]} 26... Ke7 {[%clk 0:01:13.3]} 27. Kg2 {[%clk 0:00:15.2]} 27... d3
{[%clk 0:01:11]} 28. Rf1 {[%clk 0:00:03.5]} 28... d2 {[%clk 0:01:09.8]} 0-1